Cogmind - Beta 13 @@@ ROGUE MODE // 2024.05.13 @ 16:36:09 Player: Grimalkyne Result: Destroyed by L-31 Rogue with Katana Performance ------------- Evolutions (0) 0 Regions Visited (4) 800 Robots Destroyed (22) 110 Value Destroyed (442) 442 Prototype IDs (28) 560 Alien Tech Used (0) 0 Bonus (300) 300 TOTAL SCORE: 2212 Bonus ------- Aligned with FarCom 300 Cogmind --------- Core Integrity 0/250 Matter 270/300 Energy 100/100 System Corruption 0% Temperature Cool (0) Movement Walking (190) Ox1 Location -9/Mines Parts ------- > --- POWER (1) -------- (None) > --- PROPULSION (2) --- Aluminum Leg > --- UTILITY (2) ------ Medium Storage Unit Signal Interpreter > --- WEAPON (2) ------- Light Assault Rifle > --- INVENTORY (10) --- Light Ion Engine Aluminum Leg Heat Sink Heat Sink Medium Battery (150) Large Matter Pod (150) Signal Interpreter Particle Gun AWS/Thermal Peak State ------------ > --- POWER ------------ Heavy Ion Engine > --- PROPULSION ------- Aluminum Leg Aluminum Leg > --- UTILITY ---------- Medium Storage Unit Signal Interpreter > --- WEAPON ----------- Medium Laser Light Assault Rifle > --- INVENTORY -------- Light Ion Engine Aluminum Leg Heat Sink Heat Sink Medium Battery Large Matter Pod Small Laser Light Assault Rifle Light Assault Rifle Light Assault Rifle [Rating: 10] Favorites ----------- Power Ion Engine Engine Ion Engine Propulsion Aluminum Leg Leg Aluminum Leg Utility Signal Interpreter Storage Medium Storage Unit Processor Signal Interpreter Weapon Light Assault Rifle Energy Gun Particle Gun Ballistic Gun Light Assault Rifle Build | -11 -10 -10 -10 -9 ------- Run | Yrd Mat Min Exi Min Slots Evolved . | . . . . . Power . | . . . . . Propulsion . | . . . . . Utility . | . . . . . Weapon . | . . . . . Parts Attached 22 | 6 10 4 . 2 Power 4 | 1 2 1 . . Engine 4 | 1 2 1 . . Core . | . . . . . Reactor . | . . . . . Propulsion 5 | 2 2 1 . . Treads . | . . . . . Leg 5 | 2 2 1 . . Wheel . | . . . . . Hover . | . . . . . Flight . | . . . . . Utility 4 | 1 3 . . . Device . | . . . . . Storage 3 | 1 2 . . . Processor 1 | . 1 . . . Hackware . | . . . . . Protection . | . . . . . Artifact . | . . . . . Weapon 9 | 2 3 2 . 2 Energy Gun 4 | 1 1 1 . 1 Energy Cannon . | . . . . . Ballistic Gun 5 | 1 2 1 . 1 Ballistic Cannon . | . . . . . Launcher . | . . . . . Special Weapon . | . . . . . Impact Weapon . | . . . . . Slashing Weapon . | . . . . . Piercing Weapon . | . . . . . Special Melee Weapon . | . . . . . Unidentified Prototypes 1 | . 1 . . . Parts Lost . | . . . . . Power . | . . . . . Propulsion . | . . . . . Utility . | . . . . . Weapon . | . . . . . Highest Loss Streak . | . . . . . To Critical Strikes . | . . . . . Average Slot Usage (%) 97 | . 96 99 100 98 Engine 13 | . 14 13 14 13 Leg 27 | . 28 28 28 27 Storage 14 | . 14 14 14 14 Processor 12 | . 10 14 14 14 Energy Gun 13 | . 14 14 14 13 Ballistic Gun 14 | . 14 14 14 14 Naked Turns . | . . . . . Heaviest Build 30 | 12 30 21 19 19 Greatest Support 20 | 20 20 20 20 20 Greatest Overweight (x) 1 | 1 1 1 . . Average Overweight (x) . | . . . . . Largest Inventory Capacity 15 | 8 15 10 10 10 Average Capacity 9 | 7 8 10 10 10 Most Carried 10 | 7 10 10 10 10 Average Carried 8 | 2 6 10 9 9 Final Capacity 10 | 8 10 10 10 10 Final Carried 10 | 2 10 10 10 10 Class Distribution -------------------- 50% | Scavenger-Mutant 49% | Mutant Dominant Class ---------------- Mutant | -10/Materials Scavenger-Mutant | -10/Mines Scavenger-Mutant | -10/Exiles Scavenger-Mutant | -9/Mines Resources | -11 -10 -10 -10 -9 ----------- Run | Yrd Mat Min Exi Min Matter Collected 619 | 183 365 71 . . Remotely . | . . . . . Salvage Created 624 | . 336 240 . 48 Parts 41 | . 31 10 . . Haulers Intercepted 1 | . 1 . . . Recyclers Shooed 2 | . 1 1 . . Parts Field Recycled . | . . . . . Retrieved Matter . | . . . . . Parts Self-Destructed . | . . . . . Prevented . | . . . . . Kills | -11 -10 -10 -10 -9 ------- Run | Yrd Mat Min Exi Min Combat Hostiles Destroyed 19 | . 11 7 . 1 Guns 19 | . 11 7 . 1 Classes Destroyed 4 | . 4 . . . Hauler 1 | . 1 . . . Watcher 2 | . 2 . . . Swarmer 11 | . 8 3 . . Grunt 8 | . 3 4 . 1 Best Kill Streak 3 | . 3 3 . 1 Combat Bots Only 3 | . 2 3 . 1 Max Kills in Single Turn 2 | . 1 2 . 1 Gunslinging 1 | . . 1 . . Exploded . | . . . . . Melee . | . . . . . Uniques/NPCs Destroyed . | . . . . . Combat | -11 -10 -10 -10 -9 -------- Run | Yrd Mat Min Exi Min Hostile Shots Fired 83 | . 45 25 . 13 Missed 26 | . 18 6 . 2 Damage Taken 805 | . 235 226 . 344 Core 262 | . 62 103 . 97 Absorbed by Shields . | . . . . . Core Remaining (%) 100 | 100 . . . . Volleys Fired 80 | . 50 19 . 11 Largest 2 | . 2 2 . 2 Hottest 85 | . 70 85 . 85 Shots Fired 156 | . 100 38 . 18 Gun 156 | . 100 38 . 18 Cannon . | . . . . . Launcher . | . . . . . Special . | . . . . . Kinetic 79 | . 50 19 . 10 Thermal 77 | . 50 19 . 8 Explosive . | . . . . . Electromagnetic . | . . . . . Robot Hit Streak 8 | . 7 8 . 8 Robot Miss Streak 5 | . 5 3 . 1 Penetration Max . | . . . . . Secondary Targets 4 | . 2 2 . . Max Gunslinging Chain 1 | . 1 1 . . Shots Hit Robots 93 | . 53 24 . 16 Core Hits 44 | . 26 14 . 4 Critical Kills . | . . . . . Critical Parts Destroyed . | . . . . . Critical Strikes 2 | . . 2 . . Burn 2 | . . 2 . . Melee Attacks . | . . . . . Impact . | . . . . . Slashing . | . . . . . Piercing . | . . . . . Sneak Attacks . | . . . . . Combat Hostiles . | . . . . . Follow-up Attacks . | . . . . . Damage Inflicted 978 | . 541 267 . 170 Guns 978 | . 541 267 . 170 Cannons . | . . . . . Explosions . | . . . . . Melee . | . . . . . Ramming . | . . . . . Kinetic 358 | . 199 83 . 76 Thermal 620 | . 342 184 . 94 Explosive . | . . . . . Electromagnetic . | . . . . . Impact . | . . . . . Slashing . | . . . . . Piercing . | . . . . . Highest Corruption . | . . . . . Average Corruption . | . . . . . Corruption Purged . | . . . . . Corruption Blocked . | . . . . . Overload Shots . | . . . . . Overflow Damage . | . . . . . Projectiles . | . . . . . Explosions . | . . . . . Melee . | . . . . . Knockbacks . | . . . . . Impact . | . . . . . Kinetic . | . . . . . Secondary . | . . . . . Self-Inflicted Damage . | . . . . . Shots . | . . . . . Rammed . | . . . . . Targets Rammed . | . . . . . Kicked . | . . . . . Crushed . | . . . . . Highest Temperature 229 | . 71 229 . 169 Average Temperature 52 | . 22 94 . 92 Received Heat Transfer 168 | . 48 114 . 6 Siege Activations . | . . . . . Robots Corrupted . | . . . . . Combat Hostiles . | . . . . . Parts Fried . | . . . . . Impact Corruptions . | . . . . . Robots Melted . | . . . . . Combat Hostiles . | . . . . . Parts Melted 3 | . 1 2 . . Heat Transferred 1712 | . 811 666 . 235 Parts Sabotaged . | . . . . . Parts Stolen . | . . . . . Parts Stripped . | . . . . . Power Chain Reactions . | . . . . . Alert | -11 -10 -10 -10 -9 ------- Run | Yrd Mat Min Exi Min Peak Influence 297 | . 297 154 . 20 Initial 74 | . . 74 . . Average 101 | . 147 106 . . Maximum Alert Level 1 | . 1 . . . Low Security (%) 90 | 100 80 100 . 100 Level 1 9 | . 19 . . . Level 2 . | . . . . . Level 3 . | . . . . . Level 4 . | . . . . . Level 5 . | . . . . . High Security . | . . . . . Max Security . | . . . . . Squads Dispatched 1 | . 1 . . . Investigation . | . . . . . Extermination . | . . . . . Reinforcement 1 | . 1 . . . Assault . | . . . . . Garrison . | . . . . . Intercept . | . . . . . Searches Triggered . | . . . . . Construction Impeded . | . . . . . Haulers Reinforced . | . . . . . Active Scanning Responses . | . . . . . Cargo Convoy Interrupts . | . . . . . Stealth | -11 -10 -10 -10 -9 --------- Run | Yrd Mat Min Exi Min Distress Signals 2 | . 2 . . . Communications Jammed . | . . . . . Distress Signals . | . . . . . Times Spotted 36 | . 25 8 . 3 Peak Tracking Total 4 | . 4 3 . 3 Tactical Retreats 5 | . 4 1 . . Traps | -11 -10 -10 -10 -9 ------- Run | Yrd Mat Min Exi Min Traps Triggered . | . . . . . Indirectly . | . . . . . Trap Hack Attempts . | . . . . . Triggered . | . . . . . Disarmed . | . . . . . Reprogrammed . | . . . . . Reused . | . . . . . Traps Extracted . | . . . . . Installed . | . . . . . Triggered . | . . . . . Machines | -11 -10 -10 -10 -9 ---------- Run | Yrd Mat Min Exi Min Machines Disabled . | . . . . . Max in Single Turn . | . . . . . Machines Repaired . | . . . . . Machines Dismantled . | . . . . . Machines Sabotaged . | . . . . . Overloaded Fab Kills . | . . . . . Hacking | -11 -10 -10 -10 -9 --------- Run | Yrd Mat Min Exi Min Machines Accessed 9 | . 8 . 1 . Terminals 8 | . 8 . . . Fabricators . | . . . . . Repair Stations . | . . . . . Recycling Units . | . . . . . Scanalyzers . | . . . . . Garrison Access . | . . . . . Total Hacks 26 | . 25 . 1 . Successful 16 | . 15 . 1 . Failed 10 | . 10 . . . Catastrophic 2 | . 2 . . . Database Lockouts . | . . . . . Manual 1 | . . . 1 . Terminals 25 | . 25 . . . Fabricators . | . . . . . Repair Stations . | . . . . . Recycling Units . | . . . . . Scanalyzers . | . . . . . Garrison Access . | . . . . . Terminal Hacks 16 | . 15 . 1 . Robot Analysis 1 | . 1 . . . Prototype ID Bank 3 | . 3 . . . Branch Access Points 1 | . 1 . . . Emergency Access Points 1 | . 1 . . . Alert Level 2 | . 2 . . . Locate Traps 4 | . 4 . . . Patrol Status 1 | . 1 . . . Reinforcement Status 1 | . 1 . . . Zone Layout 1 | . 1 . . . Derelict Proto ID Bank 1 | . . . 1 . Fabricator Hacks . | . . . . . Repair Station Hacks . | . . . . . Recycling Unit Hacks . | . . . . . Scanalyzer . | . . . . . Garrison Access Hacks . | . . . . . Unauthorized Hacks . | . . . . . Terminals . | . . . . . Fabricators . | . . . . . Repair Stations . | . . . . . Recycling Units . | . . . . . Scanalyzers . | . . . . . Garrison Access . | . . . . . Data Cores Recovered . | . . . . . Used . | . . . . . Hacking Detections 7 | . 7 . . . Full Trace Events . | . . . . . Feedback Events . | . . . . . Feedback Blocked . | . . . . . Robot Schematics Acquired . | . . . . . Robots Built . | . . . . . Authchips . | . . . . . Time . | . . . . . Total Robot Build Rating . | . . . . . Part Schematics Acquired . | . . . . . Parts Built . | . . . . . Authchips . | . . . . . Time . | . . . . . Total Part Build Rating . | . . . . . Parts Repaired . | . . . . . Time . | . . . . . Parts Recycled . | . . . . . Recycled Matter . | . . . . . Retrieved Matter . | . . . . . Retrieved Components . | . . . . . Parts Scanalyzed . | . . . . . Part Schematics Acquired . | . . . . . Parts Damaged . | . . . . . Bothacking | -11 -10 -10 -10 -9 ------------ Run | Yrd Mat Min Exi Min Used RIF Installer . | . . . . . Robots Hacked . | . . . . . Non-combat . | . . . . . Combat . | . . . . . Robot Hacks Applied . | . . . . . Relay Couplers Released . | . . . . . Fabnet Peak Effective % . | . . . . . Robots Rewired . | . . . . . Allies Hacked . | . . . . . Hacks Repelled . | . . . . . Allies | -11 -10 -10 -10 -9 -------- Run | Yrd Mat Min Exi Min Total Allies 3 | . . . . 3 Largest Group 3 | . . . . 3 Highest-Rated Group 40 | . . . . 40 Highest-Rated Ally 16 | . . . . 16 Total Orders . | . . . . . Ally Attacks 5 | . . . . 5 Total Damage 51 | . . . . 51 Kills . | . . . . . Allies Corrupted . | . . . . . Allies Melted . | . . . . . Intel | -11 -10 -10 -10 -9 ------- Run | Yrd Mat Min Exi Min Robot Analysis Total 1 | . 1 . . . Derelict Logs Recovered 2 | . . 1 . 1 Drone Launches . | . . . . . Drone Recoveries . | . . . . . Exploration | -11 -10 -10 -10 -9 ------------- Run | Yrd Mat Min Exi Min Turns Passed 2593 | 49 1176 577 269 522 Spaces Moved 1637 | 40 645 403 223 326 Core 19 | 19 . . . . Treads . | . . . . . Legs 1618 | 21 645 403 223 326 Wheels . | . . . . . Hover . | . . . . . Flight . | . . . . . Fastest Speed 50 | 50 120 120 120 120 Average Speed 128 | 90 139 124 120 120 Slowest Speed 190 | 120 190 190 120 120 Overloaded Moves . | . . . . . Propulsion Burnouts . | . . . . . Robots Hopped . | . . . . . Cave-ins Triggered . | . . . . . Exploration Rate (%) 60 | 4 93 92 59 56 Regions Visited 4 Branch Regions 3 Pre-discovered Areas 3 | . . 2 . 1 Known Exits Taken 3 | . 1 1 1 . Unknown Exits Taken 1 | 1 . . . . Scrap Searched 1 | . . 1 . . Spaces Dug . | . . . . . Terrain Destroyed . | . . . . . Melee . | . . . . . Projectile . | . . . . . AOE . | . . . . . Terrain Rammed . | . . . . . Walls Destroyed . | . . . . . Machines Disabled . | . . . . . Actions | -11 -10 -10 -10 -9 --------- Run | Yrd Mat Min Exi Min Total 2000 | 52 835 447 225 441 Wait 227 | . 108 18 . 101 Move 1633 | 39 644 402 222 326 Hop . | . . . . . Pick Up 23 | 7 14 . 1 1 Fast Attach 3 | 1 . 1 . 1 Attach 8 | 5 2 . . 1 Detach . | . . . . . Swap 11 | . 8 3 . . Drop 15 | . 9 4 2 . Fire 80 | . 50 19 . 11 Melee . | . . . . . Ram . | . . . . . Kick . | . . . . . Crush . | . . . . . Escape Stasis . | . . . . . Rewire . | . . . . . Trap . | . . . . . Miscellaneous . | . . . . . Route ------- -11/Scrapyard -10/Materials (discovered 4 exits: *Mat x3 / *Min) -10/Mines (discovered 3 exits: *Mat x2 / *Exi) -10/Exiles -9/Mines History --------- Turn | Location | Event 3 | -11/Scrapyard | Discovered new exit (range 16) 50 | -11/Scrapyard | Entered Materials 53 | -10/Materials | Identified exit to Mines 283 | -10/Materials | Discovered new exit (range 8) 317 | -10/Materials | Build established: Mutant 841 | -10/Materials | Discovered new exit (range 5) 868 | -10/Materials | Identified exit to Materials 999 | -10/Materials | Discovered exit to Materials (range 3) 1226 | -10/Materials | Entered Mines 1227 | -10/Mines | Learned location of Storage (-7) 1283 | -10/Mines | Core integrity fell below 50% 1408 | -10/Mines | Discovered exit to Materials (range 13) 1587 | -10/Mines | Build established: Scavenger-Mutant 1649 | -10/Mines | Learned location of Zion (-7) 1701 | -10/Mines | Discovered exit to Materials (range 10) 1799 | -10/Mines | Deemed a non-threat by the Exiles lab entrance 1799 | -10/Mines | Discovered new exit (range 5) 1802 | -10/Mines | Identified exit to Exiles 1803 | -10/Mines | Entered Exiles 1833 | -10/Exiles | Met 8R-AWN 1853 | -10/Exiles | Met EX-HEX 1889 | -10/Exiles | Met EX-BIN 1902 | -10/Exiles | Aligned with FarCom system 1903 | -10/Exiles | Given EX-Vault access code 1931 | -10/Exiles | Opened EX-Vault 1943 | -10/Exiles | Found AWS/Thermal 1969 | -10/Exiles | Warned to stay clear of 0b10 Research branches 2003 | -10/Exiles | Met EX-DEC 2057 | -10/Exiles | Discovered new exit (range 14) 2071 | -10/Exiles | Identified exit to Mines 2072 | -10/Exiles | Left Exiles lab with AWS/Thermal 2072 | -10/Exiles | Entered Mines 2367 | -9/Mines | Assisted by bots powering up and referring to "LRC-V3" 2584 | -9/Mines | Core integrity fell below 20% 2589 | -9/Mines | Lost 3 allies 2594 | -9/Mines | Destroyed by L-31 Rogue with Katana Last Messages --------------- 02367_ Trooper 2b: "Hello LRC-V3. What is your command?" 02375_ K-01 Serf collects debris. 02419_ Acquired derelict log, extracted data. World map confirmed: -7/Storage. 02462_ T-07 Excavator is excavating. 02555_ Trooper 2a destroyed. 02558_ Trooper 2b destroyed. 02567_ K-01 Serf collects debris. 02567_ R-06 Scavenger collects Particle Gun. 02568_ Aluminum Leg severed. 02570_ K-01 Serf collects debris. 02570_ R-06 Scavenger collects Aluminum Leg. 02573_ R-06 Scavenger collects Heat Sink. 02575_ Ion Engine severed. 02578_ Particle Gun severed. 02580_ Lgt. Assault Rifle severed. 02583_ Sml. Laser severed. 02586_ Acquired Particle Gun. 02588_ Acquired Lgt. Assault Rifle. 02592_ G-34 Mercenary destroyed. Map ----- +----------------------------------------------------+ | ??????????????????????????????????????# # | | ??????????????????????????????????????# | | ??????????????????????????????????????# | | ??????????????????????????????????????## # | | ???????????????????????????????????????## ## | | ????????????????????????????????????????## ## | | ?????????????????????????????????????????## # | | ????????????????????????????????####??????# | | ???????????????????????????????## ##?????## | | ???????????????????????????????# ##????## # | | ???????????????????????????????# ##??## ## | | ???????????????????????????????### #### ### | | ?????????????????????????????????## | | ??????????????????????????????????# | | ??????????????????????????????????## #### | | ???????????????????????????????????##### #?? | | ???????????????????????????????????????## #?? | | ????????????????????????????????????????# #?? | | ????????????????????????????????????????# ##?? | | ?????????????????????????###??????????? ##??? | | ????????????????????????? [#?????????? ##### | | ?????????????????????????# ##???????? ## # | | ?????????????????????????#= ?g?????? ??## # | | ?????????????????????????#k#????????????####### # | | ????????????????????######l#??????????????????# # | | ???????????????????## @%##????????????????## # | | ??????????????????## [ #????????????????# # | | ?????????????????## #????????????????# # | | ?????????????????# ##???????????????## | | ?????????????????# ##????????????????# | | ?????????????????## ##?????????????????# | | ??????????????????### ##?????????????????## | | ????????????????????# ##?????????????????## | | ????????????????????# #??????????????????# | | ????????????????##### #???????????######## | | ????????????????# #######?????# | | ????????????????# ### #?????# ####### | | ????????????????# #?######## #?????# #?????## | | ????????????????# #????????# #?????# #??????# | | ????????????????# #????????# ##????# #?????? | | ????????????????# #??????### ##???# #????# # | | ????????????????# #?????## ##### ## ## | | ????????????????# #????## ###? | | ????????????????# #???## ## ##??? | | ????????????????# #??## #### #?? #????? | | ????????????????# #??# ##? #???? ?????? | | ????????????????# #??# ## ??????????? | | ????????????????# #?## ####?????????? | | ????????????????# #?# #????????????? | | ????????????????# #?# ### #????????????? | +----------------------------------------------------+ Best States ------------- Heat Dissipation 25 Energy Generation 14 Energy Capacity 280 Matter Stores 300 Matter Capacity 300 Sight Range 16 Terrain Scan Density 10 Evasion (%) 55 Item Schematics ----------------- None Robot Schematics ------------------ None Fabricated ------------ Nothing Alien Tech Used ----------------- None Achievements -------------- None Challenges ------------ None Game ------ Seed MachineGrenadeCarapace Manual? 0 Play Time 00:20:57 Cumulative 62.1 hours Start 2024.05.13 @ 16:07:23 End 2024.05.13 @ 16:36:09 Sessions 1 Manual Loads 0 Difficulty Rogue Special Mode None Game No. 53 Rogue 52 Adventurer 1 Explorer 0 Win Type - Total 1 Types 1/0/0/0/0/0/0/0/0 Lore% 25 Gallery% 40 Achievement% 30 Wizard Run 0 Options --------- Layout 0 ASCII 0 Keyboard 0 Movement Mouse Keybinds 0 Fullscreen 2 Font 18/SmallcapsGlow Map View 76x50 Zoom Use 16% Tactical HUD 1 Map Filters NONE Filters NONE Steam 1 RUN: 2fc34a4c-7db3-4e8e-a12b-00ceb3196a43